[Event "Netanya Open 2019"]
[Site "Netanya"]
[Date "2019.06.23"]
[Round "1.52"]
[White "Kopaloff, Liam"]
[Black "Bilych, Olexiy"]
[Result "0-1"]
[WhiteElo "1545"]
[BlackElo "2187"]
[PlyCount "120"]
[EventDate "2019.06.23"]
[EventType "swiss"]
[EventRounds "9"]
[EventCountry "ISR"]
[TimeControl "40/5400+30:1800+30"]

1. d4 Nf6 2. c4 e6 3. Nf3 b6 4. g3 Bb7 5. Bg2 g6 6. O-O Bg7 7. Nc3 Ne4 8. Qc2 Nxc3 9. bxc3 O-O 10. Ba3 d6 11. Rad1 Qc8 12. Nh4 Bxg2 13. Nxg2 Qa6 14. Qb3 c5 15. d5 exd5 16. Rxd5 Nc6 17. Ne3 Na5 18. Qb5 Qxb5 19. cxb5 Bxc3 20. Rxd6 Bd4 21. Rxd4 cxd4 22. Bxf8 dxe3 23. Bb4 Nc4 24. Rc1 Rc8 25. fxe3 f5 26. Kf2 Kf7 27. Rc3 Ke6 28. Ke1 h5 29. Kf2 Kf6 30. h3 Ke6 31. Ke1 g5 32. Kf2 h4 33. gxh4 gxh4 34. a4 Ke5 35. Ke1 Ke4 36. Kf2 Kd5 37. Rd3+ Ke6 38. Rc3 Rc7 39. Ke1 Kd7 40. Rd3+ Kc8 41. Rc3 Nb2 42. Rxc7+ Kxc7 43. a5 Nc4 44. a6 Nd6 45. Bxd6+ Kxd6 46. Kf2 Kc5 47. Kf3 Kxb5 48. Kf4 Kc4 49. Kxf5 b5 50. e4 b4 51. e5 b3 52. e6 b2 53. e7 b1=Q+ 54. Ke6 Qe4+ 55. Kf7 Qf5+ 56. Ke8 Kd5 57. e4+ Kxe4 58. Kd8 Qd5+ 59. Kc7 Qe6 60. Kd8 Qd6+ 0-1

[Event "Netanya Open 2019"]
[Site "Netanya"]
[Date "2019.06.23"]
[Round "1.53"]
[White "Schnaidman, Itzhak"]
[Black "Parligras, Cosmin"]
[Result "0-1"]
[ECO "B07"]
[WhiteElo "1474"]
[BlackElo "2198"]
[PlyCount "72"]
[EventDate "2019.06.23"]
[EventType "swiss"]
[EventRounds "9"]
[EventCountry "ISR"]
[TimeControl "40/5400+30:1800+30"]

{[%evp 0,63,19,38,84,74,74,29,33,18,27,29,60,63,52,44,41,-7,59,-62,-51,-53,-51,-93,-92,-216,-113,-139,-111,-127,-173,-187,-111,-110,-123,-143,-106,-137,-149,-142,-122,-174,-139,-173,-153,-297,-271,-292,-292,-287,-304,-286,-286,-326,-280,-318,-308,-346,-373,-352,-359,-499,-717,-717,-520,-911]} 1. d4 d6 2. e4 Nf6 3. Bd3 e5 4. Nf3 exd4 5. Nxd4 g6 6. O-O Bg7 7. Bg5 h6 8. Be3 Ng4 9. c3 Nxe3 10. fxe3 O-O 11. Qb3 Nd7 12. Be2 Qg5 13. Rf3 Ne5 14. Rg3 Qe7 15. Nd2 c5 16. N4f3 Be6 17. Qd1 Ng4 18. Nf1 h5 19. h3 Nf6 20. Ng5 Rad8 21. Qc2 h4 22. e5 hxg3 23. Nxe6 Qxe6 24. exf6 Bxf6 25. Bf3 d5 26. Rd1 c4 27. Bg4 Qe5 28. Rd4 Rfe8 29. Bf3 Bg5 30. Rg4 Bxe3+ 31. Kh1 Bf4 32. Rxg6+ fxg6 33. Bxd5+ Kg7 34. Bxc4 Qe4 35. Qb3 Rh8 36. Be6 Rd2 0-1

[Event "Netanya Open 2019"]
[Site "Netanya"]
[Date "2019.06.23"]
[Round "1.54"]
[White "Lukin, Elisha"]
[Black "Lazebnikov, Efim"]
[Result "1-0"]
[ECO "E44"]
[WhiteElo "2207"]
[BlackElo "1444"]
[PlyCount "69"]
[EventDate "2019.06.23"]
[EventType "swiss"]
[EventRounds "9"]
[EventCountry "ISR"]
[TimeControl "40/5400+30:1800+30"]

{[%evp 0,59,19,38,24,-16,12,13,27,29,41,22,11,16,5,-15,20,44,66,7,44,-2,0,-6,22,-2,37,24,39,48,63,36,39,39,77,79,102,79,139,133,136,121,127,128,175,199,199,171,171,97,448,453,437,437,449,481,864,802,990,1001,1013,1088]} 1. d4 e6 2. c4 b6 3. Nc3 Bb7 4. e3 Bb4 5. Nge2 Nf6 6. a3 Be7 7. d5 exd5 8. cxd5 d6 9. g3 Nbd7 10. Bg2 O-O 11. O-O Re8 12. b3 Bf8 13. Bb2 g6 14. Rc1 a6 15. Qd2 Bg7 16. Nd4 Ne5 17. f4 Neg4 18. Rce1 Rc8 19. h3 Nh6 20. e4 Nd7 21. b4 Kf8 22. g4 b5 23. g5 Ng8 24. e5 dxe5 25. Ne6+ fxe6 26. fxe5+ Bf6 27. gxf6 Kf7 28. dxe6+ Rxe6 29. Bxb7 Nb6 30. Qf2 Rb8 31. Ne4 h6 32. Rd1 Qe8 33. Nc5 Rxb7 34. Nxb7 Qc6 35. Nd8+ 1-0

[Event "Netanya Open 2019"]
[Site "Netanya"]
[Date "2019.06.23"]
[Round "1.55"]
[White "Lomakin, Vladimir"]
[Black "Karp, Michael"]
[Result "0-1"]
[ECO "C52"]
[WhiteElo "1430"]
[BlackElo "2199"]
[PlyCount "66"]
[EventDate "2019.06.23"]
[EventType "swiss"]
[EventRounds "9"]
[EventCountry "ISR"]
[TimeControl "40/5400+30:1800+30"]

{[%evp 0,52,19,24,42,25,22,4,27,-11,-13,-37,-36,-28,13,19,28,4,43,3,4,-41,5,-77,-60,-108,-78,-129,-122,-164,-157,-198,-123,-122,-99,-151,-145,-365,-403,-388,-417,-363,-406,-390,-352,-541,-541,-541,-527,-553,-562,-751,-568,-527,-509]} 1. e4 e5 2. Nf3 Nc6 3. Bc4 Bc5 4. b4 Bxb4 5. c3 Ba5 6. d4 d6 7. dxe5 Nge7 8. exd6 cxd6 9. O-O O-O 10. a4 Bg4 11. Be2 d5 12. exd5 Qxd5 13. c4 Qe6 14. Be3 Nf5 15. Ng5 Bxe2 16. Qxe2 Qf6 17. Ra3 Rfe8 18. Qf3 Nxe3 19. fxe3 Qxg5 20. Qxf7+ Kh8 21. Rf5 Qe7 22. Qd5 Rad8 23. Qf3 Ne5 24. Qe2 Qb4 25. Rf1 Qxc4 26. Qxc4 Nxc4 27. Rb3 Bb6 28. g3 Nxe3 29. Rc1 h5 30. h4 Ng4+ 31. Kg2 Re2+ 32. Kf3 Rf2+ 33. Ke4 Rd4# 0-1

[Event "Netanya Open 2019"]
[Site "Netanya"]
[Date "2019.06.23"]
[Round "1.56"]
[White "Musyuk, Lior"]
[Black "Kinberg, Raz"]
[Result "1-0"]
[ECO "C41"]
[WhiteElo "2176"]
[BlackElo "1385"]
[PlyCount "55"]
[EventDate "2019.06.23"]
[EventType "swiss"]
[EventRounds "9"]
[EventCountry "ISR"]
[TimeControl "40/5400+30:1800+30"]

{[%evp 0,55,19,24,63,26,25,-11,75,61,61,79,79,73,70,52,88,99,79,78,81,79,79,73,69,61,73,38,49,43,23,21,21,11,22,20,23,29,17,21,29,33,31,33,222,218,243,241,254,208,227,207,215,224,289,203,197,218]} 1. e4 e5 2. Nf3 Nc6 3. d4 d6 4. dxe5 Nxe5 5. Nxe5 dxe5 6. Qxd8+ Kxd8 7. Bc4 Ke8 8. Be3 Nf6 9. f3 Bb4+ 10. Nd2 Ke7 11. c3 Bd6 12. a4 a5 13. g4 Be6 14. h4 Nd7 15. Bxe6 Kxe6 16. Nc4 Bc5 17. O-O-O b6 18. Bxc5 Nxc5 19. Rd5 f6 20. Rhd1 Rhe8 21. Ne3 Nxa4 22. Nf5 Kf7 23. Rd7+ Kf8 24. Rxg7 Rad8 25. Rdd7 Rxd7 26. Rxd7 c5 27. Nh6 Re7 28. Rd6 1-0

[Event "Netanya Open 2019"]
[Site "Netanya"]
[Date "2019.06.23"]
[Round "1.57"]
[White "Segev, Ido"]
[Black "Lahav, Michal"]
[Result "0-1"]
[ECO "E72"]
[WhiteElo "1382"]
[BlackElo "2171"]
[PlyCount "66"]
[EventDate "2019.06.23"]
[EventType "swiss"]
[EventRounds "9"]
[EventCountry "ISR"]
[TimeControl "40/5400+30:1800+30"]

{[%evp 0,58,19,-26,-2,-11,36,24,-4,11,5,20,32,44,40,31,33,33,68,61,45,25,55,-44,-33,26,17,-50,-46,10,-28,-28,-39,-15,-25,-18,-44,-39,-13,-29,-35,-19,-8,-4,0,-34,-32,-39,-37,-54,-54,-59,-105,-161,-143,-393,-501,-564,-542,-540,-447]} 1. c4 Nf6 2. Nc3 g6 3. g3 Bg7 4. Bg2 O-O 5. d4 c6 6. e4 d6 7. Nge2 c5 8. d5 e6 9. Bg5 h6 10. Bxf6 Bxf6 11. dxe6 Bxe6 12. e5 Bxe5 13. Bxb7 Nd7 14. Bxa8 Qxa8 15. O-O Bh3 16. f3 Bxf1 17. Qxf1 Nb6 18. b3 d5 19. cxd5 Nxd5 20. Rc1 Nb4 21. a3 Nd3 22. Rd1 c4 23. bxc4 Nb2 24. Rd5 Nxc4 25. Qc1 Bg7 26. Nf4 Rc8 27. Rd3 Ne5 28. Re3 Nxf3+ 29. Kh1 Nd4+ 30. Kg1 Nf3+ 31. Kh1 Bd4 32. a4 Nd2+ 33. Nfd5 Qxd5+ 0-1

[Event "Netanya Open 2019"]
[Site "Netanya"]
[Date "2019.06.23"]
[Round "1.58"]
[White "Streltsov, Alexey"]
[Black "Fudim, Basya"]
[Result "1-0"]
[ECO "C08"]
[WhiteElo "2170"]
[BlackElo "1332"]
[PlyCount "51"]
[EventDate "2019.06.23"]
[EventType "swiss"]
[EventRounds "9"]
[EventCountry "ISR"]
[TimeControl "40/5400+30:1800+30"]

{[%evp 0,41,19,24,50,43,46,33,46,-2,38,10,11,24,69,42,58,62,91,37,60,4,-23,6,21,20,44,17,25,-11,134,134,143,128,177,83,117,110,142,0,508,533,516,594]} 1. e4 e6 2. d4 d5 3. Nd2 c5 4. exd5 exd5 5. Ngf3 Nf6 6. Bb5+ Nc6 7. O-O Be6 8. Re1 h6 9. Qe2 Qb6 10. Ne5 O-O-O 11. Bxc6 bxc6 12. c3 Bd6 13. dxc5 Bxc5 14. Nb3 Kc7 15. Nxc5 Qxc5 16. Be3 Qb5 17. Qc2 Qa6 18. a4 Kd6 19. Nxf7+ Kd7 20. Nxh8 Rxh8 21. Qg6 Rg8 22. Bd4 Qb7 23. Bxf6 gxf6 24. Qh7+ Kc8 25. Qxb7+ Kxb7 26. Rxe6 1-0

[Event "Netanya Open 2019"]
[Site "Netanya"]
[Date "2019.06.23"]
[Round "1.59"]
[White "Baran, Yulia"]
[Black "Gleizer, Mark"]
[Result "0-1"]
[ECO "B02"]
[WhiteElo "1344"]
[BlackElo "2180"]
[PlyCount "58"]
[EventDate "2019.06.23"]
[EventType "swiss"]
[EventRounds "9"]
[EventCountry "ISR"]
[TimeControl "40/5400+30:1800+30"]

{[%evp 0,44,19,17,59,20,18,18,22,-2,-22,-30,-4,-5,10,-6,16,-45,-59,-68,-91,-91,-77,-92,-92,-179,-159,-271,-105,-140,-27,-121,-28,-94,-94,-92,-92,-92,-56,-48,-56,-56,-44,-61,-85,-66,-45]} 1. e4 Nf6 2. Nc3 d5 3. exd5 Nxd5 4. Nxd5 Qxd5 5. d4 Nc6 6. Nf3 Bg4 7. Be2 O-O-O 8. c3 e5 9. dxe5 Qe4 10. Bd2 Bxf3 11. gxf3 Qxe5 12. Qc2 Bc5 13. Rd1 Rde8 14. Bc1 Re6 15. f4 Qf6 16. Kf1 Qh4 17. Bf3 Rhe8 18. h3 h5 19. Kg2 Rg6+ 20. Kf1 Kb8 21. Re1 Rxe1+ 22. Kxe1 a6 23. Kf1 Re6 24. Kg2 Rg6+ 25. Kf1 Re6 26. Kg2 Ne7 27. Rf1 c6 28. Rd1 Rg6+ 29. Kh2 Bxf2 0-1

[Event "Netanya Open 2019"]
[Site "Netanya"]
[Date "2019.06.23"]
[Round "1.60"]
[White "Aizenberg, Benny"]
[Black "Lisnovetzky, Daniel"]
[Result "1-0"]
[ECO "C78"]
[WhiteElo "2153"]
[BlackElo "1320"]
[PlyCount "53"]
[EventDate "2019.06.23"]
[EventType "swiss"]
[EventRounds "9"]
[EventCountry "ISR"]
[TimeControl "40/5400+30:1800+30"]

{[%evp 0,45,26,35,55,19,11,27,27,2,-7,0,10,32,38,-16,85,77,77,-18,-18,-70,-70,-70,-13,-13,-9,-11,-11,1,83,72,138,114,81,63,33,24,129,161,413,402,519,457,484,463,543,496]} 1. e4 e5 2. Nf3 Nc6 3. Bb5 a6 4. Ba4 Nf6 5. O-O Bc5 6. c3 Ba7 7. Re1 Ng4 8. d4 exd4 9. cxd4 Nxd4 10. Nxd4 Qh4 11. Be3 Qxh2+ 12. Kf1 Qh1+ 13. Ke2 Qxg2 14. Rg1 Qh3 15. Nc3 Nxe3 16. fxe3 Qh2+ 17. Kf1 b5 18. Bb3 Qh3+ 19. Kf2 c5 20. Nf5 c4 21. Rh1 Bxe3+ 22. Nxe3 Qe6 23. Bc2 Bb7 24. Nf5 O-O 25. Qh5 h6 26. Rag1 Qb6+ 27. Ke2 1-0

[Event "Netanya Open 2019"]
[Site "Netanya"]
[Date "2019.06.23"]
[Round "1.61"]
[White "Neeman, Ori"]
[Black "Kochavi, Ori"]
[Result "0-1"]
[ECO "C02"]
[WhiteElo "1285"]
[BlackElo "2151"]
[PlyCount "168"]
[EventDate "2019.06.23"]
[EventType "swiss"]
[EventRounds "9"]
[EventCountry "ISR"]
[TimeControl "40/5400+30:1800+30"]

{[%evp 0,58,19,14,56,71,59,61,61,52,46,46,63,63,58,49,49,41,53,15,19,-54,-56,-44,-44,-34,-37,-37,-37,-42,-38,-65,-55,-64,-54,-54,-50,-134,-16,-194,-114,-231,-229,-231,-31,-330,-37,-70,-42,-110,-83,-91,-102,-81,0,-130,-100,-127,-86,-96,-85]} 1. e4 c6 2. d4 d5 3. e5 Bf5 4. Nf3 e6 5. Bd3 Bxd3 6. Qxd3 Qb6 7. c3 c5 8. O-O Nc6 9. Re1 Rc8 10. Qe2 cxd4 11. cxd4 Nge7 12. Nc3 Nf5 13. Be3 Be7 14. Rab1 O-O 15. Qb5 Qxb5 16. Nxb5 a6 17. Nc3 Na5 18. Bg5 Bb4 19. Ne2 Rc2 20. Ng3 Nxg3 21. hxg3 Nc4 22. a3 Ba5 23. b4 Bb6 24. Rb3 f6 25. exf6 gxf6 26. Bh6 Rc8 27. Be3 Ba7 28. Rd1 Nb2 29. Rd2 Rc1+ 30. Kh2 Na4 31. Re2 Ra1 32. Re1 Ra2 33. Rf1 b5 34. Rg1 Rcc2 35. Ne1 Rc3 36. Rxc3 Nxc3 37. Nf3 Rxa3 38. Rc1 Bb6 39. Bd2 Ne4 40. Rc8+ Kf7 41. Rb8 Nxd2 42. Rb7+ Kg8 43. Rb8+ Kg7 44. Rb7+ Kh6 45. Rxb6 Nxf3+ 46. gxf3 Rxf3 47. Kg2 Rd3 48. Rxe6 Kg6 49. Rxa6 Rxd4 50. Rd6 Kf5 51. Rd7 Ke6 52. Rxh7 Rxb4 53. Rb7 Rb1 54. Kf3 b4 55. Ke3 b3 56. Rb6+ Kf5 57. g4+ Kxg4 58. Kd2 Rb2+ 59. Kc3 Rxf2 60. Kxb3 Kf5 61. Kc3 Ke5 62. Kd3 Rf3+ 63. Ke2 Ra3 64. Rb5 f5 65. Rc5 Ke4 66. Rb5 Ra2+ 67. Kd1 f4 68. Rb6 d4 69. Rb8 f3 70. Re8+ Kd3 71. Ke1 Rg2 72. Kf1 Re2 73. Rc8 Ke3 74. Rd8 Kd3 75. Rf8 Re3 76. Kf2 Kd2 77. Rc8 Rc3 78. Re8 d3 79. Kxf3 Kc1 80. Ke3 d2+ 81. Ke2 Rc2 82. Rd8 d1=Q+ 83. Ke3 Re2+ 84. Kf4 Qf1+ 0-1

[Event "Netanya Open 2019"]
[Site "Netanya"]
[Date "2019.06.23"]
[Round "1.62"]
[White "Guz, Ari"]
[Black "Sivan, Guy"]
[Result "1-0"]
[ECO "A13"]
[WhiteElo "2135"]
[BlackElo "1246"]
[PlyCount "61"]
[EventDate "2019.06.23"]
[EventType "swiss"]
[EventRounds "9"]
[EventCountry "ISR"]
[TimeControl "40/5400+30:1800+30"]

{[%evp 0,47,19,-6,20,-17,-1,-7,-13,-1,-4,3,1,-16,-25,-39,-2,-13,-31,-31,56,40,10,26,29,18,58,54,59,49,57,64,131,137,90,101,97,122,150,163,158,165,185,144,148,161,286,277,891,940]} 1. c4 c5 2. b3 Nc6 3. Bb2 e6 4. Nf3 d5 5. e3 Nf6 6. cxd5 exd5 7. d4 Be6 8. Be2 cxd4 9. Nxd4 Nxd4 10. Qxd4 Rc8 11. O-O Bc5 12. Bb5+ Bd7 13. Qe5+ Be7 14. Bxd7+ Qxd7 15. Nc3 O-O 16. Nxd5 Qxd5 17. Qxe7 Rfe8 18. Qa3 Rc2 19. Bxf6 gxf6 20. Qxa7 Kh8 21. Rad1 Qc6 22. g3 b5 23. Qxf7 Rxa2 24. Rd7 Qxd7 25. Qxd7 Rb8 26. Rc1 Rg8 27. Rc7 Ra1+ 28. Kg2 Rxg3+ 29. hxg3 Rg1+ 30. Kxg1 b4 31. Rc8# 1-0

[Event "Netanya Open 2019"]
[Site "Netanya"]
[Date "2019.06.23"]
[Round "1.63"]
[White "Mendler, Omer"]
[Black "Levi, Netanel"]
[Result "0-1"]
[ECO "C41"]
[WhiteElo "1231"]
[BlackElo "2138"]
[PlyCount "110"]
[EventDate "2019.06.23"]
[EventType "swiss"]
[EventRounds "9"]
[EventCountry "ISR"]
[TimeControl "40/5400+30:1800+30"]

{[%evp 0,68,26,16,84,68,77,83,72,37,52,52,52,38,49,62,51,-10,45,31,31,31,32,40,40,40,43,-29,-8,0,-12,-13,-5,-5,-3,-9,-9,-36,-24,-39,20,17,17,16,61,1,0,-18,15,-30,-18,-16,-9,-24,-24,-20,-21,-27,-22,-25,-23,-19,0,0,-1,-2,0,0,0,-34,0]} 1. e4 d6 2. d4 Nf6 3. Nc3 Nbd7 4. Bc4 e5 5. Nf3 Be7 6. dxe5 dxe5 7. Bxf7+ Kxf7 8. Ng5+ Kg8 9. Ne6 Qe8 10. Nxc7 Qg6 11. Nxa8 Qxg2 12. Rf1 Nc5 13. Qe2 Bh3 14. Nc7 Qxf1+ 15. Qxf1 Bxf1 16. Kxf1 Ncxe4 17. Nxe4 Nxe4 18. f3 Nf6 19. b3 Bd6 20. Nb5 Bb8 21. Bb2 a6 22. Na3 Kf7 23. Nc4 Re8 24. Re1 e4 25. Bxf6 gxf6 26. Rxe4 Rxe4 27. fxe4 b5 28. Ne3 Bxh2 29. c4 bxc4 30. Nxc4 Ke6 31. Kg2 Bc7 32. b4 Bd6 33. a3 Be7 34. Kh3 h5 35. Na5 Kd7 36. Nc4 Kc6 37. Na5+ Kb5 38. Kg3 Ka4 39. Nc6 Bd6+ 40. Kh4 Kxa3 41. Kxh5 Bxb4 42. Nxb4 Kxb4 43. Kg6 a5 44. Kxf6 a4 45. e5 a3 46. e6 a2 47. e7 a1=Q+ 48. Kf7 Qf1+ 49. Ke8 Kc5 50. Kd8 Qf6 51. Kd7 Qf7 52. Kd8 Kd6 53. Kc8 Qxe7 54. Kb8 Kc6 55. Ka8 Qb7# 0-1

[Event "Netanya Open 2019"]
[Site "Netanya"]
[Date "2019.06.23"]
[Round "1.64"]
[White "Hoffmann, Yair"]
[Black "Friedland, Benzi"]
[Result "1-0"]
[ECO "E10"]
[WhiteElo "2175"]
[BlackElo "1189"]
[PlyCount "95"]
[EventDate "2019.06.23"]
[EventType "swiss"]
[EventRounds "9"]
[EventCountry "ISR"]
[TimeControl "40/5400+30:1800+30"]

{[%evp 0,69,19,36,27,-14,-25,5,-6,-11,6,-12,2,22,27,26,29,-19,64,43,62,51,98,85,124,100,103,115,111,73,117,104,132,145,146,131,152,124,169,156,201,168,166,207,226,192,210,230,229,233,238,242,233,150,137,134,136,136,172,183,219,168,197,216,225,233,259,257,297,331,320,342]} 1. d4 d5 2. c4 e6 3. Nf3 Nf6 4. Nc3 Nc6 5. a3 a6 6. e3 Be7 7. Qc2 Bd7 8. b4 dxc4 9. Bxc4 b5 10. Bd3 Bd6 11. Ne4 Rc8 12. Nc5 Bxc5 13. Qxc5 Qe7 14. Qg5 Qf8 15. O-O h6 16. Qg3 g5 17. Ne5 Rg8 18. Nxd7 Nxd7 19. Bb2 Nb6 20. Rac1 Qd6 21. Qh3 e5 22. Be4 Ne7 23. dxe5 Qe6 24. Qxe6 fxe6 25. Bb7 Rb8 26. Be4 Nc4 27. Rc2 Rd8 28. Bd4 Nd5 29. Ra1 Rg7 30. g3 g4 31. Bd3 Ncb6 32. Rd1 Rg5 33. Be2 Rg7 34. e4 Ne7 35. Rxc7 Na4 36. Ra7 Rc8 37. Rxa6 Nc3 38. Bxc3 Rxc3 39. Rxe6 h5 40. Bxb5+ Kf7 41. Rf6+ Kg8 42. Rd8+ Kh7 43. Rdd6 Ng8 44. Rf5 Ne7 45. Rxh5+ Kg8 46. Rd8+ Kf7 47. Be8+ Ke6 48. Rd6# 1-0

[Event "Netanya Open 2019"]
[Site "Netanya"]
[Date "2019.06.23"]
[Round "1.65"]
[White "Marques, Don"]
[Black "Hasidovsky, Michael"]
[Result "0-1"]
[ECO "B20"]
[WhiteElo "1179"]
[BlackElo "2135"]
[PlyCount "39"]
[EventDate "2019.06.23"]
[EventType "swiss"]
[EventRounds "9"]
[EventCountry "ISR"]
[TimeControl "40/5400+30:1800+30"]

{[%evp 0,39,19,24,53,43,43,19,41,-8,22,16,24,30,41,-7,52,7,22,-19,4,-56,-71,-417,-419,-786,-724,-744,-817,-915,-972,-972,-957,-1098,-1141,-1274,-1296,-1226,-1243,-29989,-29990,-29991]} 1. e4 c5 2. Bc4 e6 3. Nc3 a6 4. a3 b5 5. Ba2 Bb7 6. d3 Be7 7. Be3 d5 8. exd5 exd5 9. d4 c4 10. b3 Bxa3 11. Qf3 Bb2 12. Nxd5 Bxd5 13. Qg4 Nf6 14. Qxg7 Rg8 15. Qh6 Bxa1 16. Ne2 Rg6 17. Qh4 Qa5+ 18. Bd2 Qxa2 19. O-O Rxg2+ 20. Kh1 0-1

[Event "Netanya Open 2019"]
[Site "Netanya"]
[Date "2019.06.23"]
[Round "1.66"]
[White "Zalkind, Konstantin"]
[Black "Khairova, Evelina"]
[Result "1-0"]
[ECO "A13"]
[WhiteElo "2116"]
[BlackElo "1501"]
[PlyCount "87"]
[EventDate "2019.06.23"]
[EventType "swiss"]
[EventRounds "9"]
[EventCountry "ISR"]
[TimeControl "40/5400+30:1800+30"]

{[%evp 0,66,39,12,34,-16,5,-23,-2,-2,4,-30,-3,5,16,15,25,36,37,32,50,61,58,62,56,82,61,71,93,56,102,101,205,213,230,208,212,197,222,232,245,230,239,231,242,237,275,300,304,293,296,205,205,163,179,118,595,472,490,532,552,599,609,634,717,742,766,801,831]} 1. Nf3 e6 2. c4 Nf6 3. b3 Be7 4. Bb2 O-O 5. g3 d6 6. Bg2 c5 7. O-O Nc6 8. d4 cxd4 9. Nxd4 Nxd4 10. Qxd4 e5 11. Qd2 Qc7 12. Nc3 a6 13. Rac1 Be6 14. e4 Rfd8 15. Nd5 Qd7 16. Nb6 Qc7 17. Nxa8 Rxa8 18. f4 exf4 19. gxf4 Rd8 20. Kh1 h6 21. Qc3 Rc8 22. Qg3 Kh7 23. Rcd1 Rd8 24. f5 Bd7 25. e5 dxe5 26. Bxe5 Qc8 27. Rde1 Bxf5 28. Bxf6 Bxf6 29. Rxf5 Qxf5 30. Be4 Qxe4+ 31. Rxe4 Rd1+ 32. Re1 Rd2 33. Qf3 Rd8 34. Qxb7 Rf8 35. c5 Kg8 36. Qd7 Kh7 37. Re8 Rxe8 38. Qxe8 Kg6 39. c6 Bg5 40. c7 Kh7 41. Qxf7 Bf6 42. c8=Q Bd8 43. Qcf5+ Kh8 44. Qf8# 1-0

[Event "Netanya Open 2019"]
[Site "Netanya"]
[Date "2019.06.23"]
[Round "1.67"]
[White "Gleizer, Lior"]
[Black "Itzhaky, Shmuel"]
[Result "0-1"]
[ECO "C05"]
[WhiteElo "1461"]
[BlackElo "2134"]
[PlyCount "88"]
[EventDate "2019.06.23"]
[EventType "swiss"]
[EventRounds "9"]
[EventCountry "ISR"]
[TimeControl "40/5400+30:1800+30"]

{[%evp 0,45,19,17,47,49,40,27,8,4,1,-5,-5,15,12,-33,29,-9,49,-9,-1,-33,-25,-16,-24,-64,-48,-68,-50,-64,-72,-72,-72,-161,-133,-178,-142,-217,-170,-172,-172,-172,-173,-162,-152,-164,-164,-163]} 1. e4 e6 2. d4 d5 3. Nd2 Nf6 4. e5 Nfd7 5. Ngf3 c5 6. c3 Nc6 7. Nb3 Qb6 8. Be2 a5 9. a4 cxd4 10. Nbxd4 Ndxe5 11. Nxe5 Nxe5 12. Bb5+ Bd7 13. Bf4 Nc6 14. Be3 Bc5 15. O-O O-O 16. b4 axb4 17. cxb4 Bxd4 18. Bxd4 Qxd4 19. Qxd4 Nxd4 20. Bxd7 Rfd8 21. Bb5 Kf8 22. g3 Ke7 23. f4 Nxb5 24. axb5 Rxa1 25. Rxa1 d4 26. Kf1 Rd5 27. Rd1 f6 28. b6 e5 29. fxe5 fxe5 30. Rc1 e4 31. Rc7+ Rd7 32. b5 d3 33. Ke1 e3 34. Kd1 d2 35. Rxd7+ Kxd7 36. h3 Kd6 37. h4 Kc5 38. g4 Kxb6 39. h5 Kxb5 40. g5 Kc4 41. Kc2 b5 42. g6 hxg6 43. hxg6 b4 44. Kd1 b3 0-1

[Event "Netanya Open 2019"]
[Site "Netanya"]
[Date "2019.06.23"]
[Round "1.68"]
[White "Yaniv, Yuval"]
[Black "Ben Hemo, Guy"]
[Result "1-0"]
[ECO "B38"]
[WhiteElo "2132"]
[BlackElo "1453"]
[PlyCount "53"]
[EventDate "2019.06.23"]
[EventType "swiss"]
[EventRounds "9"]
[EventCountry "ISR"]
[TimeControl "40/5400+30:1800+30"]

{[%evp 0,53,19,17,27,-18,19,9,16,-15,11,-9,21,33,35,-2,35,18,11,29,36,51,54,42,44,42,43,63,58,41,32,28,38,38,47,47,38,32,47,51,96,73,115,105,126,-272,196,198,267,268,268,262,396,384,734,747]} 1. Nf3 Nf6 2. c4 c5 3. Nc3 Nc6 4. d4 cxd4 5. Nxd4 g6 6. e4 d6 7. f3 Bg7 8. Be3 O-O 9. Be2 Qc7 10. Qd2 Nxd4 11. Bxd4 Be6 12. b3 a6 13. O-O Nd7 14. Bxg7 Kxg7 15. Kh1 Qa5 16. f4 f6 17. Qe3 Qc5 18. Qg3 Bf7 19. Rad1 b5 20. cxb5 Rfc8 21. Na4 Qc2 22. bxa6 Qxa2 23. Bb5 Rcb8 24. Nc3 Qxb3 25. Bxd7 Rd8 26. Rb1 Qc2 27. Ba4 1-0

[Event "Netanya Open 2019"]
[Site "Netanya"]
[Date "2019.06.23"]
[Round "1.69"]
[White "Usha Margolin, Daniel"]
[Black "Katkov, Michelle"]
[Result "0-1"]
[ECO "C49"]
[WhiteElo "1437"]
[BlackElo "2065"]
[PlyCount "110"]
[EventDate "2019.06.23"]
[EventType "swiss"]
[EventRounds "9"]
[EventCountry "ISR"]
[TimeControl "40/5400+30:1800+30"]

{[%evp 0,63,39,39,39,31,18,25,17,12,18,23,14,22,2,-1,9,4,22,10,39,13,31,16,39,31,46,-8,6,-36,-36,-16,0,-8,-4,-36,3,-53,-46,-59,-59,-130,-133,-132,-129,-125,-124,-130,-124,-130,-133,-126,-117,-149,-133,-163,-163,-167,-147,-141,-141,-153,-137,-138,-143,-136]} 1. e4 e5 2. Nf3 Nc6 3. Nc3 Nf6 4. Bb5 Bb4 5. O-O O-O 6. d3 d6 7. Bg5 Bxc3 8. bxc3 Qe7 9. Re1 Nd8 10. d4 Ne6 11. Bh4 Nf4 12. Bg5 Ng6 13. h3 h6 14. Bh4 Nxh4 15. Nxh4 g6 16. Bc4 Kg7 17. Qf3 Bd7 18. Re3 Bc6 19. d5 Bd7 20. Kh2 Ng4+ 21. hxg4 Qxh4+ 22. Kg1 Bxg4 23. Qg3 Qxg3 24. Rxg3 Bd7 25. Rb1 b6 26. Rf1 Rae8 27. f4 exf4 28. Rxf4 Re5 29. Bd3 g5 30. Rf1 f6 31. Rgf3 Bg4 32. R3f2 Bh5 33. Rf5 Re7 34. Kh2 Bg6 35. R5f3 Re5 36. Re3 f5 37. Rfe1 Rfe8 38. Bb5 R8e7 39. R1e2 Rxe4 40. Rxe4 Rxe4 41. Rxe4 fxe4 42. Kg3 Kf6 43. Be2 Ke5 44. Bc4 Bf7 45. Bb3 Bxd5 46. Bxd5 Kxd5 47. Kf2 h5 48. Ke3 Ke5 49. c4 h4 50. c3 g4 51. a3 h3 52. gxh3 gxh3 53. a4 h2 54. a5 h1=Q 55. axb6 Qe1# 0-1

[Event "Netanya Open 2019"]
[Site "Netanya"]
[Date "2019.06.23"]
[Round "1.70"]
[White "Gorshtein, Asaf"]
[Black "Havakuk, Elad"]
[Result "1-0"]
[ECO "B32"]
[WhiteElo "2109"]
[BlackElo "1350"]
[PlyCount "29"]
[EventDate "2019.06.23"]
[EventType "swiss"]
[EventRounds "9"]
[EventCountry "ISR"]
[TimeControl "40/5400+30:1800+30"]

{[%evp 0,29,19,24,53,51,46,40,162,159,159,143,182,158,201,156,869,886,872,872,864,864,930,875,1010,1162,1186,1194,29997,29998,29999,-30000]} 1. e4 c5 2. Nf3 Nc6 3. d4 b6 4. d5 Na5 5. Nc3 d6 6. Bf4 Bg4 7. h3 Bxf3 8. Bb5+ Qd7 9. Bxd7+ Kxd7 10. Qxf3 Re8 11. e5 Nc4 12. e6+ fxe6 13. dxe6+ Kd8 14. Qa8+ Kc7 15. Nd5# 1-0